"Date-Occurred",Department,Supplier,Net,Purpose,Category
27/04/2017,Premises Management,EDMUNDSON ELECTRIC,429.5,Repair & Maintenance,Building Services
27/04/2017,Premises Management,EDMUNDSON ELECTRIC,417.36,Repair & Maintenance,Building Services
27/04/2017,Premises Management,EDMUNDSON ELECTRIC,79.34,Repair & Maintenance,Building Services
27/04/2017,Premises Management,EDMUNDSON ELECTRIC,70.08,Repair & Maintenance,Building Services
27/04/2017,Premises Management,EDMUNDSON ELECTRIC,44.4,Repair & Maintenance,Building Services
27/04/2017,Premises Management,LLOYD & JONES ENGINEER,32.4,Repair & Maintenance,Building Services
27/04/2017,Premises Management,EDMUNDSON ELECTRIC,26.5,Repair & Maintenance,Building Services
27/04/2017,Premises Management,EDMUNDSON ELECTRIC,25.06,Repair & Maintenance,Building Services
27/04/2017,Premises Management,EDMUNDSON ELECTRIC,22.2,Repair & Maintenance,Building Services
27/04/2017,Premises Management,LLOYD & JONES ENGINEER,16.19,Repair & Maintenance,Building Services
27/04/2017,Premises Management,EDMUNDSON ELECTRIC,7.03,Repair & Maintenance,Building Services
27/04/2017,Premises Management,EDMUNDSON ELECTRIC,4.4,Repair & Maintenance,Building Services
28/04/2017,Premises Management,EDMUNDSON ELECTRIC,258.31,Repair & Maintenance,Building Services
28/04/2017,Premises Management,EDMUNDSON ELECTRIC,176.2,Repair & Maintenance,Building Services
28/04/2017,Premises Management,KEN KNIGHT (NW) LTD,168,Repair & Maintenance,Building Services
28/04/2017,Premises Management,EDMUNDSON ELECTRIC,84,Repair & Maintenance,Building Services
28/04/2017,Premises Management,EDMUNDSON ELECTRIC,65.06,Repair & Maintenance,Building Services
28/04/2017,Premises Management,J BEATTIE & SON LT,56.4,Repair & Maintenance,Building Services
28/04/2017,Premises Management,J BEATTIE & SON LT,56.4,Repair & Maintenance,Building Services
28/04/2017,Premises Management,BEERS BOUNDARY STREET,31.58,Repair & Maintenance,Building Services
28/04/2017,Premises Management,BEERS BOUNDARY STREET,30.63,Repair & Maintenance,Building Services
28/04/2017,Premises Management,LLOYD & JONES ENGINEER,19.44,Repair & Maintenance,Building Services
28/04/2017,Premises Management,J BEATTIE & SON LT,16.67,Repair & Maintenance,Building Services
28/04/2017,Premises Management,TASKERS WAVERTREE,15.95,Repair & Maintenance,Building Services
28/04/2017,Premises Management,BEERS BOUNDARY STREET,15.77,Repair & Maintenance,Building Services
28/04/2017,Premises Management,J BEATTIE & SON LT,15.59,Repair & Maintenance,Building Services
28/04/2017,Premises Management,J BEATTIE & SON LT,15.1,Repair & Maintenance,Building Services
30/04/2017,Culture,FACEBK 6PDGVCWVG2,7.96,Advertising,Marketing
02/05/2017,Premises Management,PINNACLE ELECTRICA,1440.14,Repair & Maintenance,Building Services
02/05/2017,Premises Management,PINNACLE ELECTRICA,1011.6,Repair & Maintenance,Building Services
02/05/2017,Premises Management,PINNACLE ELECTRICA,415.8,Repair & Maintenance,Building Services
02/05/2017,Premises Management,PINNACLE ELECTRICA,244.2,Repair & Maintenance,Building Services
02/05/2017,Premises Management,PINNACLE ELECTRICA,168.48,Repair & Maintenance,Building Services
02/05/2017,Premises Management,CROSSLING CMB LTD,103.16,Repair & Maintenance,Building Services
02/05/2017,Premises Management,R HASTINGS AND SON CONT L,95.59,Repair & Maintenance,Building Services
02/05/2017,Premises Management,HIRE AND SAFETY UK LTD,90,Repair & Maintenance,Building Services
02/05/2017,Premises Management,MAPLIN LIVERPOOL L7,72.95,Repair & Maintenance,Building Services
02/05/2017,Premises Management,PINNACLE ELECTRICA,72,Repair & Maintenance,Building Services
02/05/2017,Premises Management,MERSEYSIDE ELECTRICAL,44.4,Repair & Maintenance,Building Services
02/05/2017,Premises Management,FLOORING SUPPLY CT,39.18,Repair & Maintenance,Building Services
02/05/2017,Premises Management,MERSEYSIDE ELECTRICAL,28.44,Repair & Maintenance,Building Services
02/05/2017,Premises Management,EDMUNDSON ELECTRIC,23.04,Repair & Maintenance,Building Services
02/05/2017,Premises Management,PINNACLE ELECTRICA,20.4,Repair & Maintenance,Building Services
02/05/2017,Premises Management,EDMUNDSON ELECTRIC,19.86,Repair & Maintenance,Building Services
02/05/2017,Premises Management,CITY PLUMBING SUPP,13.63,Repair & Maintenance,Building Services
02/05/2017,Premises Management,B & Q 1297,12.14,Repair & Maintenance,Building Services
02/05/2017,Premises Management,ADI-GARDINER LTD,8.41,Repair & Maintenance,Building Services
02/05/2017,Premises Management,EDMUNDSON ELECTRIC,-172.68,Repair & Maintenance,Building Services
03/05/2017,Premises Management,NEWEY & EYRE,568.01,Repair & Maintenance,Building Services
03/05/2017,Premises Management,MERSEYSIDE ELECTRICAL,240.6,Repair & Maintenance,Building Services
03/05/2017,Premises Management,MERSEYSIDE ELECTRICAL,194.86,Repair & Maintenance,Building Services
03/05/2017,Premises Management,AA FENCING UK LTD,151.45,Repair & Maintenance,Building Services
03/05/2017,Premises Management,RINUS ROOFING SUPPLIES,133.26,Repair & Maintenance,Building Services
03/05/2017,Premises Management,PIPE/CLIMATE CENTER ZK,131.08,Repair & Maintenance,Building Services
03/05/2017,Premises Management,PAYPAL  REMOTECONTR,103.56,Repair & Maintenance,Building Services
03/05/2017,Premises Management,CROSSLING CMB LTD,103.16,Repair & Maintenance,Building Services
03/05/2017,Premises Management,MERSEYSIDE ELECTRICAL,99.9,Repair & Maintenance,Building Services
03/05/2017,Premises Management,MERSEYSIDE ELECTRICAL,79.19,Repair & Maintenance,Building Services
03/05/2017,Premises Management,CABLE SERVICES LTD,40.37,Repair & Maintenance,Building Services
03/05/2017,Premises Management,SCREWFIX,31.3,Repair & Maintenance,Building Services
03/05/2017,Premises Management,CROSSLING CMB LTD,20.87,Repair & Maintenance,Building Services
03/05/2017,Premises Management,SCREWFIX,7.69,Repair & Maintenance,Building Services
03/05/2017,Premises Management,SCREWFIX,5.99,Repair & Maintenance,Building Services
03/05/2017,Premises Management,SCREWFIX DIRECT,4.89,Repair & Maintenance,Building Services
03/05/2017,Premises Management,SCREWFIX,4.49,Repair & Maintenance,Building Services
04/05/2017,Premises Management,PIPE/CLIMATE CENTER ZK,395.33,Repair & Maintenance,Building Services
04/05/2017,Premises Management,KEN KNIGHT (NW) LTD,385.2,Repair & Maintenance,Building Services
04/05/2017,Premises Management,PIPE/CLIMATE CENTER ZK,362.23,Repair & Maintenance,Building Services
04/05/2017,Premises Management,ADI-GARDINER LTD,326.39,Repair & Maintenance,Building Services
04/05/2017,Premises Management,DULUX DECORATOR CENTRE,232.79,Repair & Maintenance,Building Services
04/05/2017,Premises Management,DULUX DECORATOR CENTRE,223.73,Repair & Maintenance,Building Services
04/05/2017,Premises Management,R HASTINGS AND SON CONT L,92.39,Repair & Maintenance,Building Services
04/05/2017,Premises Management,R HASTINGS AND SON CONT L,50.28,Repair & Maintenance,Building Services
04/05/2017,Premises Management,NEWEY & EYRE,41.58,Repair & Maintenance,Building Services
04/05/2017,Premises Management,SIGNS 3000 LTD,36,Repair & Maintenance,Building Services
04/05/2017,Premises Management,MAPLIN AINTREE L9,32.97,Repair & Maintenance,Building Services
04/05/2017,Premises Management,MERSEYSIDE ELECTRICAL,32.64,Repair & Maintenance,Building Services
04/05/2017,Premises Management,York And Young Ltd,29,Repair & Maintenance,Building Services
04/05/2017,Premises Management,York And Young Ltd,24,Repair & Maintenance,Building Services
04/05/2017,Premises Management,RINUS ROOFING SUPPLIES,22.2,Repair & Maintenance,Building Services
04/05/2017,Premises Management,ADI-GARDINER LTD,18,Repair & Maintenance,Building Services
04/05/2017,Premises Management,O2 UK,10,Repair & Maintenance,Building Services
04/05/2017,Premises Management,B & Q 1132,6,Repair & Maintenance,Building Services
05/05/2017,Premises Management,SPARES CENTRE LTD,926.4,Repair & Maintenance,Building Services
05/05/2017,Premises Management,MERSEYSIDE ELECTRICAL,171.96,Repair & Maintenance,Building Services
05/05/2017,Premises Management,EDMUNDSON ELECTRIC,104.63,Repair & Maintenance,Building Services
05/05/2017,Premises Management,MERSEYSIDE ELECTRICAL,104.34,Repair & Maintenance,Building Services
05/05/2017,Premises Management,MERSEYSIDE ELECTRICAL,103.02,Repair & Maintenance,Building Services
05/05/2017,Premises Management,MERSEYSIDE ELECTRICAL,97.8,Repair & Maintenance,Building Services
05/05/2017,Premises Management,EDMUNDSON ELECTRIC,93.95,Repair & Maintenance,Building Services
05/05/2017,Premises Management,PRESCOTTS ARCHITECTURAL,76.93,Repair & Maintenance,Building Services
05/05/2017,Premises Management,CROSSLING CMB LTD,42.56,Repair & Maintenance,Building Services
05/05/2017,Premises Management,EDMUNDSON ELECTRIC,27.65,Repair & Maintenance,Building Services
05/05/2017,Premises Management,York And Young Ltd,24.4,Repair & Maintenance,Building Services
05/05/2017,Premises Management,CROSSLING CMB LTD,22.73,Repair & Maintenance,Building Services
05/05/2017,Premises Management,TASKERS WAVERTREE,21.98,Repair & Maintenance,Building Services
05/05/2017,Premises Management,SCREWFIX,6.99,Repair & Maintenance,Building Services
08/05/2017,Premises Management,ADI-GARDINER LTD,2653.94,Repair & Maintenance,Building Services
08/05/2017,Premises Management,TERRYS TIMBER,469.2,Repair & Maintenance,Building Services
08/05/2017,Premises Management,EDMUNDSON ELECTRIC,379.26,Repair & Maintenance,Building Services
08/05/2017,Premises Management,EDMUNDSON ELECTRIC,247.96,Repair & Maintenance,Building Services
08/05/2017,Premises Management,EDMUNDSON ELECTRIC,99.66,Repair & Maintenance,Building Services
08/05/2017,Premises Management,EDMUNDSON ELECTRIC,97.49,Repair & Maintenance,Building Services
08/05/2017,Premises Management,CHADWICKS,92.88,Repair & Maintenance,Building Services
08/05/2017,Premises Management,BEERS BOUNDARY STREET,68.61,Repair & Maintenance,Building Services
08/05/2017,Premises Management,MAPLIN AINTREE L9,39.99,Repair & Maintenance,Building Services
08/05/2017,Premises Management,TOOLSTATION LTD,29.59,Repair & Maintenance,Building Services
08/05/2017,Premises Management,LLOYD & JONES ENGINEER,29.53,Repair & Maintenance,Building Services
08/05/2017,Premises Management,SCREWFIX,25.64,Repair & Maintenance,Building Services
08/05/2017,Premises Management,TASKERS AINTREE,21.96,Repair & Maintenance,Building Services
08/05/2017,Premises Management,PIPE/CLIMATE CENTER ZK,17.58,Repair & Maintenance,Building Services
08/05/2017,Premises Management,EDMUNDSON ELECTRIC,16.12,Repair & Maintenance,Building Services
08/05/2017,Premises Management,EDMUNDSON ELECTRIC,5.48,Repair & Maintenance,Building Services
08/05/2017,Premises Management,NEWEY & EYRE,5.28,Repair & Maintenance,Building Services
09/05/2017,Premises Management,ADI-GARDINER LTD,565.68,Repair & Maintenance,Building Services
09/05/2017,Premises Management,RINUS ROOFING SUPPLIES,500.5,Repair & Maintenance,Building Services
09/05/2017,Premises Management,RINUS ROOFING SUPPLIES,500,Repair & Maintenance,Building Services
09/05/2017,Premises Management,KEN KNIGHT (NW) LTD,367.2,Repair & Maintenance,Building Services
09/05/2017,Premises Management,EDMUNDSON ELECTRIC,367.19,Repair & Maintenance,Building Services
09/05/2017,Premises Management,MERSEYSIDE ELECTRICAL,160.74,Repair & Maintenance,Building Services
09/05/2017,Premises Management,EDMUNDSON ELECTRIC,144.54,Repair & Maintenance,Building Services
09/05/2017,Premises Management,MERSEYSIDE ELECTRICAL,83.16,Repair & Maintenance,Building Services
09/05/2017,Premises Management,CROSSLING CMB LTD,75.3,Repair & Maintenance,Building Services
09/05/2017,Premises Management,EDMUNDSON ELECTRIC,63.67,Repair & Maintenance,Building Services
09/05/2017,Premises Management,TOOLSTATION LTD,54.19,Repair & Maintenance,Building Services
09/05/2017,Premises Management,PRESCOTTS ARCHITECTURAL,45.18,Repair & Maintenance,Building Services
09/05/2017,Premises Management,PLUMBASE LTD,42.1,Repair & Maintenance,Building Services
09/05/2017,Premises Management,TOOLSTATION LTD,41.66,Repair & Maintenance,Building Services
09/05/2017,Premises Management,ADI-GARDINER LTD,41.64,Repair & Maintenance,Building Services
09/05/2017,Premises Management,EDMUNDSON ELECTRIC,34.98,Repair & Maintenance,Building Services
09/05/2017,Premises Management,EDMUNDSON ELECTRIC,34.7,Repair & Maintenance,Building Services
09/05/2017,Premises Management,EDMUNDSON ELECTRIC,34.45,Repair & Maintenance,Building Services
09/05/2017,Premises Management,TOOLSTATION LTD,32.65,Repair & Maintenance,Building Services
09/05/2017,Premises Management,NEW KEY TRADING SERVIC,20,Repair & Maintenance,Building Services
09/05/2017,Premises Management,MAPLIN AINTREE L9,15.98,Repair & Maintenance,Building Services
09/05/2017,Premises Management,B & Q 1132,10,Repair & Maintenance,Building Services
09/05/2017,Premises Management,CROSSLING CMB LTD,2.56,Repair & Maintenance,Building Services
10/05/2017,Premises Management,CROSSLING CMB LTD,603.29,Repair & Maintenance,Building Services
10/05/2017,Premises Management,NEW KEY TRADING SERVIC,225,Repair & Maintenance,Building Services
10/05/2017,Premises Management,MERSEYSIDE ELECTRICAL,103.39,Repair & Maintenance,Building Services
10/05/2017,Premises Management,J BEATTIE & SON LT,64.74,Repair & Maintenance,Building Services
10/05/2017,Premises Management,EDMUNDSON ELECTRIC,64.45,Repair & Maintenance,Building Services
10/05/2017,Premises Management,THE WORKTOP CENTRE LTD,53.5,Repair & Maintenance,Building Services
10/05/2017,Premises Management,ADI-GARDINER LTD,51.79,Repair & Maintenance,Building Services
10/05/2017,Premises Management,PIPE/CLIMATE CENTER ZK,51.73,Repair & Maintenance,Building Services
10/05/2017,Premises Management,J BEATTIE & SON LT,33.6,Repair & Maintenance,Building Services
10/05/2017,Premises Management,J BEATTIE & SON LT,26.38,Repair & Maintenance,Building Services
10/05/2017,Premises Management,CROSSLING CMB LTD,22.46,Repair & Maintenance,Building Services
10/05/2017,Premises Management,PLUMB CENTER MR,21.9,Repair & Maintenance,Building Services
10/05/2017,Premises Management,J BEATTIE & SON LT,16.67,Repair & Maintenance,Building Services
10/05/2017,Premises Management,CROSSLING CMB LTD,15.6,Repair & Maintenance,Building Services
10/05/2017,Premises Management,CROSSLING CMB LTD,9,Repair & Maintenance,Building Services
10/05/2017,Premises Management,CROSSLING CMB LTD,7.8,Repair & Maintenance,Building Services
10/05/2017,Premises Management,TARGET ELECTRICAL SUPP,7.8,Repair & Maintenance,Building Services
10/05/2017,Premises Management,TOOLSTATION LTD,6.61,Repair & Maintenance,Building Services
10/05/2017,Premises Management,ADI-GARDINER LTD,5.98,Repair & Maintenance,Building Services
11/05/2017,Premises Management,CITY PLUMBING SUPP,546.89,Repair & Maintenance,Building Services
11/05/2017,Premises Management,KEN KNIGHT (NW) LTD,330,Repair & Maintenance,Building Services
11/05/2017,Premises Management,BSS GROUP PLC,202.56,Repair & Maintenance,Building Services
11/05/2017,Premises Management,CITY PLUMBING SUPP,182.95,Repair & Maintenance,Building Services
11/05/2017,Premises Management,BSS GROUP PLC,163.93,Repair & Maintenance,Building Services
11/05/2017,Premises Management,MERSEYSIDE ELECTRICAL,94.62,Repair & Maintenance,Building Services
11/05/2017,Premises Management,BSS GROUP PLC,92.5,Repair & Maintenance,Building Services
11/05/2017,Premises Management,MERSEYSIDE ELECTRICAL,75.6,Repair & Maintenance,Building Services
11/05/2017,Premises Management,TASKERS WAVERTREE,65.41,Repair & Maintenance,Building Services
11/05/2017,Premises Management,R HASTINGS AND SON CONT L,54.06,Repair & Maintenance,Building Services
11/05/2017,Premises Management,BEERS BOUNDARY STREET,52.7,Repair & Maintenance,Building Services
11/05/2017,Premises Management,TARGET ELECTRICAL SUPP,50.7,Repair & Maintenance,Building Services
11/05/2017,Premises Management,PIPE/CLIMATE CENTER ZK,46.92,Repair & Maintenance,Building Services
11/05/2017,Premises Management,MERSEYSIDE ELECTRICAL,45,Repair & Maintenance,Building Services
11/05/2017,Premises Management,CITY PLUMBING SUPP,27.5,Repair & Maintenance,Building Services
11/05/2017,Premises Management,MERSEYSIDE ELECTRICAL,26.4,Repair & Maintenance,Building Services
11/05/2017,Premises Management,CROSSLING CMB LTD,12.52,Repair & Maintenance,Building Services
11/05/2017,Premises Management,TASKERS WAVERTREE,11.97,Repair & Maintenance,Building Services
11/05/2017,Premises Management,B & Q 1297,9,Repair & Maintenance,Building Services
11/05/2017,Premises Management,SCREWFIX,5.92,Repair & Maintenance,Building Services
11/05/2017,Culture,FACEBK CFK2UC6VG2,20,Advertising,Marketing
12/05/2017,Premises Management,TAYLORGLASS LTD,368.4,Repair & Maintenance,Building Services
12/05/2017,Premises Management,RINUS ROOFING SUPPLIES,223.78,Repair & Maintenance,Building Services
12/05/2017,Premises Management,MERSEYSIDE ELECTRICAL,175.5,Repair & Maintenance,Building Services
12/05/2017,Premises Management,TAYLORGLASS LTD,71.93,Repair & Maintenance,Building Services
12/05/2017,Premises Management,EDMUNDSON ELECTRIC,54.94,Repair & Maintenance,Building Services
12/05/2017,Premises Management,CROSSLING CMB LTD,50.86,Repair & Maintenance,Building Services
12/05/2017,Premises Management,EDMUNDSON ELECTRIC,50.02,Repair & Maintenance,Building Services
12/05/2017,Premises Management,TAYLORGLASS LTD,46.2,Repair & Maintenance,Building Services
12/05/2017,Premises Management,B & Q 1132,43.36,Repair & Maintenance,Building Services
12/05/2017,Premises Management,TAYLORGLASS LTD,31.8,Repair & Maintenance,Building Services
12/05/2017,Premises Management,J BEATTIE & SON LT,26.35,Repair & Maintenance,Building Services
12/05/2017,Premises Management,SMITHDOWN ELECTRICAL W,18.24,Repair & Maintenance,Building Services
12/05/2017,Premises Management,J BEATTIE & SON LT,15.1,Repair & Maintenance,Building Services
12/05/2017,Premises Management,PIPE/CLIMATE CENTER ZK,9.85,Repair & Maintenance,Building Services
12/05/2017,Premises Management,CITY PLUMBING SUPP,7.84,Repair & Maintenance,Building Services
15/05/2017,Premises Management,SPARES CENTRE LTD,472.36,Repair & Maintenance,Building Services
15/05/2017,Premises Management,SPARES CENTRE LTD,232.8,Repair & Maintenance,Building Services
15/05/2017,Premises Management,EDMUNDSON ELECTRIC,145.32,Repair & Maintenance,Building Services
15/05/2017,Premises Management,ADI-GARDINER LTD,119.74,Repair & Maintenance,Building Services
15/05/2017,Premises Management,EDMUNDSON ELECTRIC,103.73,Repair & Maintenance,Building Services
15/05/2017,Premises Management,EDMUNDSON ELECTRIC,61.5,Repair & Maintenance,Building Services
15/05/2017,Premises Management,SIGNS 3000 LTD,60,Repair & Maintenance,Building Services
15/05/2017,Premises Management,HIRE AND SAFETY UK LTD,57.25,Repair & Maintenance,Building Services
15/05/2017,Premises Management,TASKERS WAVERTREE,49.93,Repair & Maintenance,Building Services
15/05/2017,Premises Management,TASKERS WAVERTREE,47.91,Repair & Maintenance,Building Services
15/05/2017,Premises Management,EDMUNDSON ELECTRIC,43.52,Repair & Maintenance,Building Services
15/05/2017,Premises Management,LIVERPOOL POWER BO,43.2,Repair & Maintenance,Building Services
15/05/2017,Premises Management,EDMUNDSON ELECTRIC,15.2,Repair & Maintenance,Building Services
15/05/2017,Premises Management,TOOLSTATION LTD,14.51,Repair & Maintenance,Building Services
15/05/2017,Premises Management,TARGET ELECTRICAL SUPP,13.32,Repair & Maintenance,Building Services
15/05/2017,Premises Management,EYRE & ELLISTON LTD,5.39,Repair & Maintenance,Building Services
16/05/2017,Procurement,WHITEPAPERCOUK,453.6,Conference,Conference
16/05/2017,Premises Management,RINUS ROOFING SUPPLIES,483.42,Repair & Maintenance,Building Services
16/05/2017,Premises Management,MERSEYSIDE ELECTRICAL,326.28,Repair & Maintenance,Building Services
16/05/2017,Premises Management,SPARES CENTRE LTD,270,Repair & Maintenance,Building Services
16/05/2017,Premises Management,CROSSLING CMB LTD,239.58,Repair & Maintenance,Building Services
16/05/2017,Premises Management,WWW.FINERFILTERS.CO.UK,145.92,Repair & Maintenance,Building Services
16/05/2017,Premises Management,WHITAKER GARDEN CENTRE,88.8,Repair & Maintenance,Building Services
16/05/2017,Premises Management,WHITAKER GARDEN CENTRE,88.8,Repair & Maintenance,Building Services
16/05/2017,Premises Management,CITY PLUMBING SUPP,88.19,Repair & Maintenance,Building Services
16/05/2017,Premises Management,BEERS BOUNDARY STREET,54.47,Repair & Maintenance,Building Services
16/05/2017,Premises Management,B & Q 1132,40.41,Repair & Maintenance,Building Services
16/05/2017,Premises Management,PIPE/CLIMATE CENTER ZK,17.58,Repair & Maintenance,Building Services
16/05/2017,Premises Management,HOME SECURE LOCK & GLA,11.13,Repair & Maintenance,Building Services
16/05/2017,Premises Management,CROSSLING CMB LTD,7.8,Repair & Maintenance,Building Services
16/05/2017,Premises Management,CROSSLING CMB LTD,2.56,Repair & Maintenance,Building Services
16/05/2017,Premises Management,CROSSLING CMB LTD,1.81,Repair & Maintenance,Building Services
16/05/2017,Culture,123-REG.CO.UK,1.19,Domain Registration,Marketing
17/05/2017,Childrens Services,HM PASSPORT,270,Passport application,Personal Services
17/05/2017,Premises Management,SPARES CENTRE LTD,407.14,Repair & Maintenance,Building Services
17/05/2017,Premises Management,KEN KNIGHT (NW) LTD,384,Repair & Maintenance,Building Services
17/05/2017,Premises Management,RIMMERS MUSIC LTD,315,Repair & Maintenance,Building Services
17/05/2017,Premises Management,MERSEYSIDE ELECTRICAL,288.62,Repair & Maintenance,Building Services
17/05/2017,Premises Management,ADI-GARDINER LTD,201.19,Repair & Maintenance,Building Services
17/05/2017,Premises Management,DULUX DECORATOR CENTRE,193.79,Repair & Maintenance,Building Services
17/05/2017,Premises Management,MERSEYSIDE ELECTRICAL,158.38,Repair & Maintenance,Building Services
17/05/2017,Premises Management,SPARES CENTRE LTD,150,Repair & Maintenance,Building Services
17/05/2017,Premises Management,MERSEYSIDE ELECTRICAL,138.9,Repair & Maintenance,Building Services
17/05/2017,Premises Management,WHITAKER GARDEN CENTRE,118.78,Repair & Maintenance,Building Services
17/05/2017,Premises Management,ADI-GARDINER LTD,116.62,Repair & Maintenance,Building Services
17/05/2017,Premises Management,BEESLEY & FILDES LTD,71.76,Repair & Maintenance,Building Services
17/05/2017,Premises Management,J BEATTIE & SON LT,71.1,Repair & Maintenance,Building Services
17/05/2017,Premises Management,MERSEYSIDE ELECTRICAL,57.59,Repair & Maintenance,Building Services
17/05/2017,Premises Management,J BEATTIE & SON LT,56.4,Repair & Maintenance,Building Services
17/05/2017,Premises Management,J BEATTIE & SON LT,52.7,Repair & Maintenance,Building Services
17/05/2017,Premises Management,J BEATTIE & SON LT,50,Repair & Maintenance,Building Services
17/05/2017,Premises Management,BEERS BOUNDARY STREET,35.43,Repair & Maintenance,Building Services
17/05/2017,Premises Management,J BEATTIE & SON LT,33.43,Repair & Maintenance,Building Services
17/05/2017,Premises Management,SCREWFIX,26.3,Repair & Maintenance,Building Services
17/05/2017,Premises Management,PRESCOTTS ARCHITECTURAL,23.62,Repair & Maintenance,Building Services
17/05/2017,Premises Management,TASKERS WAVERTREE,19.99,Repair & Maintenance,Building Services
17/05/2017,Premises Management,TASKERS AINTREE,19.98,Repair & Maintenance,Building Services
17/05/2017,Premises Management,GENERAL TRAFFIC LTD,19.01,Repair & Maintenance,Building Services
17/05/2017,Premises Management,TASKERS WAVERTREE,12.97,Repair & Maintenance,Building Services
17/05/2017,Premises Management,CROSSLING CMB LTD,12.54,Repair & Maintenance,Building Services
17/05/2017,Premises Management,J BEATTIE & SON LT,10.44,Repair & Maintenance,Building Services
17/05/2017,Premises Management,ASDA SUPERSTORE,10,Repair & Maintenance,Building Services
18/05/2017,Premises Management,EDMUNDSON ELECTRIC,875.35,Repair & Maintenance,Building Services
18/05/2017,Premises Management,MERSEYSIDE ELECTRICAL,225,Repair & Maintenance,Building Services
18/05/2017,Premises Management,EDMUNDSON ELECTRIC,219.6,Repair & Maintenance,Building Services
18/05/2017,Premises Management,PIPE/CLIMATE CENTER ZK,199.37,Repair & Maintenance,Building Services
18/05/2017,Premises Management,EDMUNDSON ELECTRIC,144.54,Repair & Maintenance,Building Services
18/05/2017,Premises Management,LIVERPOOL CITY CPS,134.27,Repair & Maintenance,Building Services
18/05/2017,Premises Management,EYRE & ELLISTON LTD,119.59,Repair & Maintenance,Building Services
18/05/2017,Premises Management,MERSEYSIDE ELECTRICAL,94.62,Repair & Maintenance,Building Services
18/05/2017,Premises Management,CHADWICKS,78.55,Repair & Maintenance,Building Services
18/05/2017,Premises Management,BEERS BOUNDARY STREET,75.19,Repair & Maintenance,Building Services
18/05/2017,Premises Management,EDMUNDSON ELECTRIC,70.73,Repair & Maintenance,Building Services
18/05/2017,Premises Management,NORTHERN REFRIGERATION,56.22,Repair & Maintenance,Building Services
18/05/2017,Premises Management,EDMUNDSON ELECTRIC,49.33,Repair & Maintenance,Building Services
18/05/2017,Premises Management,EDMUNDSON ELECTRIC,46.02,Repair & Maintenance,Building Services
18/05/2017,Premises Management,EDMUNDSON ELECTRIC,45.44,Repair & Maintenance,Building Services
18/05/2017,Premises Management,PLUMB CENTER MR,43.51,Repair & Maintenance,Building Services
18/05/2017,Premises Management,AA FENCING UK LTD,35.4,Repair & Maintenance,Building Services
18/05/2017,Premises Management,BEERS BOUNDARY STREET,30,Repair & Maintenance,Building Services
18/05/2017,Premises Management,EDMUNDSON ELECTRIC,28.52,Repair & Maintenance,Building Services
18/05/2017,Premises Management,LLOYD & JONES ENGINEER,24.65,Repair & Maintenance,Building Services
18/05/2017,Premises Management,CROSSLING CMB LTD,15.6,Repair & Maintenance,Building Services
18/05/2017,Premises Management,CROSSLING CMB LTD,15.26,Repair & Maintenance,Building Services
18/05/2017,Premises Management,BEESLEY & FILDES,12.24,Repair & Maintenance,Building Services
18/05/2017,Premises Management,HALFORDS 0533,11.5,Repair & Maintenance,Building Services
18/05/2017,Premises Management,MAPLIN LIVERPOOL L1,9.99,Repair & Maintenance,Building Services
19/05/2017,Premises Management,ADI-GARDINER LTD,554.09,Repair & Maintenance,Building Services
19/05/2017,Premises Management,KEN KNIGHT (NW) LTD,390,Repair & Maintenance,Building Services
19/05/2017,Premises Management,CROSSLING CMB LTD,294.08,Repair & Maintenance,Building Services
19/05/2017,Premises Management,EDMUNDSON ELECTRIC,226.44,Repair & Maintenance,Building Services
19/05/2017,Premises Management,EDMUNDSON ELECTRIC,158.2,Repair & Maintenance,Building Services
19/05/2017,Premises Management,MERSEYSIDE ELECTRICAL,149.99,Repair & Maintenance,Building Services
19/05/2017,Premises Management,EDMUNDSON ELECTRIC,142.24,Repair & Maintenance,Building Services
19/05/2017,Premises Management,ADI-GARDINER LTD,106.57,Repair & Maintenance,Building Services
19/05/2017,Premises Management,RIMMERS MUSIC LTD,85,Repair & Maintenance,Building Services
19/05/2017,Premises Management,TARGET ELECTRICAL SUPP,76.81,Repair & Maintenance,Building Services
19/05/2017,Premises Management,EDMUNDSON ELECTRIC,71.44,Repair & Maintenance,Building Services
19/05/2017,Premises Management,TARGET ELECTRICAL SUPP,60,Repair & Maintenance,Building Services
19/05/2017,Premises Management,ADI-GARDINER LTD,49.3,Repair & Maintenance,Building Services
19/05/2017,Premises Management,EDMUNDSON ELECTRIC,45.6,Repair & Maintenance,Building Services
19/05/2017,Premises Management,EDMUNDSON ELECTRIC,39.3,Repair & Maintenance,Building Services
19/05/2017,Premises Management,RINUS ROOFING SUPPLIES,36,Repair & Maintenance,Building Services
19/05/2017,Premises Management,EDMUNDSON ELECTRIC,25.08,Repair & Maintenance,Building Services
19/05/2017,Premises Management,MAPLIN AINTREE L9,24.99,Repair & Maintenance,Building Services
19/05/2017,Premises Management,PLUMB CENTER NTW,24.3,Repair & Maintenance,Building Services
19/05/2017,Premises Management,ADI-GARDINER LTD,22.51,Repair & Maintenance,Building Services
19/05/2017,Premises Management,EDMUNDSON ELECTRIC,18.17,Repair & Maintenance,Building Services
19/05/2017,Premises Management,EDMUNDSON ELECTRIC,11.69,Repair & Maintenance,Building Services
19/05/2017,Premises Management,EDMUNDSON ELECTRIC,10.12,Repair & Maintenance,Building Services
19/05/2017,Premises Management,TARGET ELECTRICAL SUPP,10.08,Repair & Maintenance,Building Services
19/05/2017,Premises Management,EDMUNDSON ELECTRIC,4.99,Repair & Maintenance,Building Services
20/05/2017,Premises Management,SCREWFIX,67.16,Repair & Maintenance,Building Services
20/05/2017,Premises Management,SCREWFIX,7,Repair & Maintenance,Building Services
22/05/2017,Premises Management,TERRYS TIMBER,482.4,Repair & Maintenance,Building Services
22/05/2017,Premises Management,PIPE/CLIMATE CENTER ZK,477.04,Repair & Maintenance,Building Services
22/05/2017,Premises Management,KEN KNIGHT (NW) LTD,420,Repair & Maintenance,Building Services
22/05/2017,Premises Management,MERSEYSIDE ELECTRICAL,290.4,Repair & Maintenance,Building Services
22/05/2017,Premises Management,TERRYS TIMBER,192,Repair & Maintenance,Building Services
22/05/2017,Premises Management,HIRE AND SAFETY UK LTD,180,Repair & Maintenance,Building Services
22/05/2017,Premises Management,HIRE AND SAFETY UK LTD,159.22,Repair & Maintenance,Building Services
22/05/2017,Premises Management,PIPE/CLIMATE CENTER ZK,145.2,Repair & Maintenance,Building Services
22/05/2017,Premises Management,HIRE AND SAFETY UK LTD,100.8,Repair & Maintenance,Building Services
22/05/2017,Premises Management,BEERS BOUNDARY STREET,65.4,Repair & Maintenance,Building Services
22/05/2017,Premises Management,PAYPAL  REMOTECONTR,55.94,Repair & Maintenance,Building Services
22/05/2017,Premises Management,B & Q 1297,48.6,Repair & Maintenance,Building Services
22/05/2017,Premises Management,BEERS BOUNDARY STREET,33.31,Repair & Maintenance,Building Services
22/05/2017,Premises Management,EDMUNDSON ELECTRIC,31.4,Repair & Maintenance,Building Services
22/05/2017,Premises Management,PLUMBASE LTD,27.5,Repair & Maintenance,Building Services
22/05/2017,Premises Management,TOOLSTATION LTD,12.07,Repair & Maintenance,Building Services
22/05/2017,Premises Management,EDMUNDSON ELECTRIC,10.14,Repair & Maintenance,Building Services
22/05/2017,Premises Management,SCREWFIX,6.99,Repair & Maintenance,Building Services
22/05/2017,Premises Management,SCREWFIX,-7,Repair & Maintenance,Building Services
23/05/2017,Childrens Services,HM PASSPORT,90,Passport application,Personal Services
23/05/2017,Premises Management,ADI-GARDINER LTD,518.7,Repair & Maintenance,Building Services
23/05/2017,Premises Management,SMITHDOWN ELECTRICAL W,480,Repair & Maintenance,Building Services
23/05/2017,Premises Management,HSS HIRE,226.03,Repair & Maintenance,Building Services
23/05/2017,Premises Management,MERSEYSIDE ELECTRICAL,157.8,Repair & Maintenance,Building Services
23/05/2017,Premises Management,B & Q 1132,66.33,Repair & Maintenance,Building Services
23/05/2017,Premises Management,A PLANT,66,Repair & Maintenance,Building Services
23/05/2017,Premises Management,SCREWFIX DIRECT LT,54.03,Repair & Maintenance,Building Services
23/05/2017,Premises Management,LLOYD & JONES ENGINEER,43.45,Repair & Maintenance,Building Services
23/05/2017,Premises Management,J BEATTIE & SON LT,28.92,Repair & Maintenance,Building Services
23/05/2017,Premises Management,B & Q 1297,12.56,Repair & Maintenance,Building Services
23/05/2017,Premises Management,TOOLSTATION LTD,9.23,Repair & Maintenance,Building Services
23/05/2017,Premises Management,CROSSLING CMB LTD,8.56,Repair & Maintenance,Building Services
24/05/2017,Premises Management,RINUS ROOFING SUPPLIES,495,Repair & Maintenance,Building Services
24/05/2017,Premises Management,WWW.CERTSURE.COM,378,Repair & Maintenance,Building Services
24/05/2017,Premises Management,HIRE AND SAFETY UK LTD,336.96,Repair & Maintenance,Building Services
24/05/2017,Premises Management,CHADWICKS,115.08,Repair & Maintenance,Building Services
24/05/2017,Premises Management,ADI-GARDINER LTD,102.96,Repair & Maintenance,Building Services
24/05/2017,Premises Management,CROSSLING CMB LTD,77,Repair & Maintenance,Building Services
24/05/2017,Premises Management,CROSSLING CMB LTD,77,Repair & Maintenance,Building Services
24/05/2017,Premises Management,EDMUNDSON ELECTRIC,68.47,Repair & Maintenance,Building Services
24/05/2017,Premises Management,York And Young Ltd,48.71,Repair & Maintenance,Building Services
24/05/2017,Premises Management,BEERS BOUNDARY STREET,45.04,Repair & Maintenance,Building Services
24/05/2017,Premises Management,ADI-GARDINER LTD,44.74,Repair & Maintenance,Building Services
24/05/2017,Premises Management,EDMUNDSON ELECTRIC,39.1,Repair & Maintenance,Building Services
24/05/2017,Premises Management,EDMUNDSON ELECTRIC,33.31,Repair & Maintenance,Building Services
24/05/2017,Premises Management,ADI-GARDINER LTD,33.2,Repair & Maintenance,Building Services
24/05/2017,Premises Management,B & Q 1297,30,Repair & Maintenance,Building Services
24/05/2017,Premises Management,CROSSLING CMB LTD,30,Repair & Maintenance,Building Services
24/05/2017,Premises Management,EDMUNDSON ELECTRIC,27.1,Repair & Maintenance,Building Services
24/05/2017,Premises Management,GENERAL TRAFFIC LTD,26.21,Repair & Maintenance,Building Services
24/05/2017,Premises Management,B & Q 1297,20.74,Repair & Maintenance,Building Services
24/05/2017,Premises Management,TARGET ELECTRICAL SUPP,20.4,Repair & Maintenance,Building Services
24/05/2017,Premises Management,THOMAS AND NELSON,17.3,Repair & Maintenance,Building Services
24/05/2017,Premises Management,SCREWFIX,16.58,Repair & Maintenance,Building Services
24/05/2017,Premises Management,TOOLSTATION LTD,12.26,Repair & Maintenance,Building Services
24/05/2017,Premises Management,CLAS OHLSON,7.98,Repair & Maintenance,Building Services
24/05/2017,Premises Management,BEERS BOUNDARY STREET,7.13,Repair & Maintenance,Building Services
24/05/2017,Premises Management,TARGET ELECTRICAL SUPP,5.4,Repair & Maintenance,Building Services
24/05/2017,Premises Management,CROSSLING CMB LTD,1.9,Repair & Maintenance,Building Services
25/05/2017,Procurement,WWW.CIPS.ORG,99.96,CIPS Exam Fee,Education
25/05/2017,Chief Executive,CLAS OHLSON,92.99,ICT Equipment,ICT
25/05/2017,Chief Executive,MARKS&SPENCER PLC,-79,Refund Laptop bag,IT Equiptment
25/05/2017,Premises Management,RINUS ROOFING SUPPLIES,850.5,Repair & Maintenance,Building Services
25/05/2017,Premises Management,KEN KNIGHT (NW) LTD,558,Repair & Maintenance,Building Services
25/05/2017,Premises Management,SPARES CENTRE LTD,423.89,Repair & Maintenance,Building Services
25/05/2017,Premises Management,SAFETY SYSTEMS DIS,405,Repair & Maintenance,Building Services
25/05/2017,Premises Management,TARGET ELECTRICAL SUPP,254.4,Repair & Maintenance,Building Services
25/05/2017,Premises Management,CITY PLUMBING SUPP,146.19,Repair & Maintenance,Building Services
25/05/2017,Premises Management,HIRE AND SAFETY UK LTD,96.66,Repair & Maintenance,Building Services
25/05/2017,Premises Management,TARGET ELECTRICAL SUPP,73.92,Repair & Maintenance,Building Services
25/05/2017,Premises Management,HIRE AND SAFETY UK LTD,56.94,Repair & Maintenance,Building Services
25/05/2017,Premises Management,PLUMB CENTER MR,56.8,Repair & Maintenance,Building Services
25/05/2017,Premises Management,MERSEYSIDE ELECTRICAL,50.64,Repair & Maintenance,Building Services
25/05/2017,Premises Management,TARGET ELECTRICAL SUPP,36.02,Repair & Maintenance,Building Services
25/05/2017,Premises Management,TASKERS WAVERTREE,35.93,Repair & Maintenance,Building Services
25/05/2017,Premises Management,CROSSLING CMB LTD,34.54,Repair & Maintenance,Building Services
25/05/2017,Premises Management,HARBORD ELECTRICAL LTD,22.78,Repair & Maintenance,Building Services
25/05/2017,Premises Management,TASKERS WAVERTREE,21.98,Repair & Maintenance,Building Services
25/05/2017,Premises Management,CROSSLING CMB LTD,15.4,Repair & Maintenance,Building Services
25/05/2017,Premises Management,CROSSLING CMB LTD,15.06,Repair & Maintenance,Building Services
25/05/2017,Premises Management,O2 MBB,10,Repair & Maintenance,Building Services
25/05/2017,Premises Management,EDMUNDSON ELECTRIC,6.96,Repair & Maintenance,Building Services
25/05/2017,Premises Management,TOOLSTATION LTD,2.96,Repair & Maintenance,Building Services
26/05/2017,Premises Management,HARGREAVES DUCTWORK LTD,723.6,Repair & Maintenance,Building Services
26/05/2017,Premises Management,CITY PLUMBING SUPP,264,Repair & Maintenance,Building Services
26/05/2017,Premises Management,EDMUNDSON ELECTRIC,263.54,Repair & Maintenance,Building Services
26/05/2017,Premises Management,MERSEYSIDE ELECTRICAL,225,Repair & Maintenance,Building Services
26/05/2017,Premises Management,CITY PLUMBING SUPP,119.2,Repair & Maintenance,Building Services
26/05/2017,Premises Management,EDMUNDSON ELECTRIC,116.44,Repair & Maintenance,Building Services
26/05/2017,Premises Management,TERRYS TIMBER,105,Repair & Maintenance,Building Services
26/05/2017,Premises Management,EDMUNDSON ELECTRIC,90.6,Repair & Maintenance,Building Services
26/05/2017,Premises Management,EDMUNDSON ELECTRIC,65.68,Repair & Maintenance,Building Services
26/05/2017,Premises Management,MERSEYSIDE ELECTRICAL,53.56,Repair & Maintenance,Building Services
26/05/2017,Premises Management,EDMUNDSON ELECTRIC,53.05,Repair & Maintenance,Building Services
26/05/2017,Premises Management,EDMUNDSON ELECTRIC,33.91,Repair & Maintenance,Building Services
26/05/2017,Premises Management,SMITHDOWN ELECTRICAL W,32.34,Repair & Maintenance,Building Services
26/05/2017,Premises Management,MAPLIN AINTREE L9,23.98,Repair & Maintenance,Building Services
26/05/2017,Premises Management,CROSSLING CMB LTD,23.4,Repair & Maintenance,Building Services
26/05/2017,Premises Management,RINUS ROOFING SUPPLIES,22.64,Repair & Maintenance,Building Services
26/05/2017,Premises Management,EDMUNDSON ELECTRIC,21.2,Repair & Maintenance,Building Services
26/05/2017,Premises Management,BEERS BOUNDARY STREET,17.57,Repair & Maintenance,Building Services
26/05/2017,Premises Management,EDMUNDSON ELECTRIC,3.86,Repair & Maintenance,Building Services
30/05/2017,Premises Management,RINUS ROOFING SUPPLIES,444,Repair & Maintenance,Building Services
30/05/2017,Premises Management,IRONMONGERY DIRECT LTD,379.2,Repair & Maintenance,Building Services
30/05/2017,Premises Management,MERSEYSIDE ELECTRICAL,304.8,Repair & Maintenance,Building Services
30/05/2017,Premises Management,ADI-GARDINER LTD,195.46,Repair & Maintenance,Building Services
30/05/2017,Premises Management,MERSEYSIDE ELECTRICAL,191.26,Repair & Maintenance,Building Services
30/05/2017,Premises Management,EYRE & ELLISTON LTD,183.11,Repair & Maintenance,Building Services
30/05/2017,Premises Management,CITY PLUMBING SUPP,172.52,Repair & Maintenance,Building Services
30/05/2017,Premises Management,ADI-GARDINER LTD,107.84,Repair & Maintenance,Building Services
30/05/2017,Premises Management,CROSSLING CMB LTD,49.81,Repair & Maintenance,Building Services
30/05/2017,Premises Management,CHESTNUT BUILDING CENT,47.28,Repair & Maintenance,Building Services
30/05/2017,Premises Management,CROSSLING CMB LTD,42.92,Repair & Maintenance,Building Services
30/05/2017,Premises Management,CITY PLUMBING SUPP,42.74,Repair & Maintenance,Building Services
30/05/2017,Premises Management,LIVERPOOL (CCF),41.47,Repair & Maintenance,Building Services
30/05/2017,Premises Management,TOOLSTATION LTD,29.59,Repair & Maintenance,Building Services
30/05/2017,Premises Management,SCREWFIX,23.78,Repair & Maintenance,Building Services
30/05/2017,Premises Management,O2 MBB,10,Repair & Maintenance,Building Services
30/05/2017,Premises Management,SCREWFIX,4.69,Repair & Maintenance,Building Services
30/05/2017,Premises Management,EDMUNDSON ELECTRIC,2.18,Repair & Maintenance,Building Services
31/05/2017,Childrens Services,HM PASSPORT,90,Passport application,Personal Services
31/05/2017,Premises Management,RINUS ROOFING SUPPLIES,531.6,Repair & Maintenance,Building Services
31/05/2017,Premises Management,KEN KNIGHT (NW) LTD,306,Repair & Maintenance,Building Services
31/05/2017,Premises Management,KEN KNIGHT (NW) LTD,290.4,Repair & Maintenance,Building Services
31/05/2017,Premises Management,CROSSLING CMB LTD,268.8,Repair & Maintenance,Building Services
31/05/2017,Premises Management,TARGET ELECTRICAL SUPP,208.98,Repair & Maintenance,Building Services
31/05/2017,Premises Management,HSS HIRE,188.83,Repair & Maintenance,Building Services
31/05/2017,Premises Management,TARGET ELECTRICAL SUPP,180,Repair & Maintenance,Building Services
31/05/2017,Premises Management,MERSEYSIDE ELECTRICAL,138.9,Repair & Maintenance,Building Services
31/05/2017,Premises Management,JONNY GOGGLES,129,Repair & Maintenance,Building Services
31/05/2017,Premises Management,MERSEYSIDE ELECTRICAL,76.56,Repair & Maintenance,Building Services
31/05/2017,Premises Management,MERSEYSIDE ELECTRICAL,75.6,Repair & Maintenance,Building Services
31/05/2017,Premises Management,EDMUNDSON ELECTRIC,72.16,Repair & Maintenance,Building Services
31/05/2017,Premises Management,EDMUNDSON ELECTRIC,55.39,Repair & Maintenance,Building Services
31/05/2017,Premises Management,SMITHDOWN ELECTRICAL W,54,Repair & Maintenance,Building Services
31/05/2017,Premises Management,SMITHDOWN ELECTRICAL W,49.14,Repair & Maintenance,Building Services
31/05/2017,Premises Management,EDMUNDSON ELECTRIC,46.34,Repair & Maintenance,Building Services
31/05/2017,Premises Management,EDMUNDSON ELECTRIC,43.81,Repair & Maintenance,Building Services
31/05/2017,Premises Management,PLUMB CENTER NTW,42.86,Repair & Maintenance,Building Services
31/05/2017,Premises Management,TARGET ELECTRICAL SUPP,40.8,Repair & Maintenance,Building Services
31/05/2017,Premises Management,MAPLIN AINTREE L9,39.98,Repair & Maintenance,Building Services
31/05/2017,Premises Management,EDMUNDSON ELECTRIC,38.12,Repair & Maintenance,Building Services
31/05/2017,Premises Management,SCREWFIX,36.89,Repair & Maintenance,Building Services
31/05/2017,Premises Management,SCREWFIX,36.4,Repair & Maintenance,Building Services
31/05/2017,Premises Management,CROSSLING CMB LTD,29.33,Repair & Maintenance,Building Services
31/05/2017,Premises Management,EYRE & ELLISTON LTD,25.96,Repair & Maintenance,Building Services
31/05/2017,Premises Management,York And Young Ltd,19.6,Repair & Maintenance,Building Services
31/05/2017,Premises Management,HUWS GRAY LIMITED,17.57,Repair & Maintenance,Building Services
31/05/2017,Premises Management,EDMUNDSON ELECTRIC,17.14,Repair & Maintenance,Building Services
31/05/2017,Premises Management,B & Q 1297,14.54,Repair & Maintenance,Building Services
31/05/2017,Premises Management,EDMUNDSON ELECTRIC,11.6,Repair & Maintenance,Building Services
31/05/2017,Premises Management,B & Q 1132,7.9,Repair & Maintenance,Building Services
31/05/2017,Premises Management,BEERS BOUNDARY STREET,5.64,Repair & Maintenance,Building Services
31/05/2017,Premises Management,MAPLIN AINTREE L9,-10,Repair & Maintenance,Building Services
31/05/2017,Culture,FACEBK 434SXCSVG2,31.01,Advertising,Marketing
31/05/2017,Culture,FACEBK MBS8LBSB82,7.59,Advertising,Marketing
